fUSD/lending_fUSD_20250525
["ID","MTS","AMOUNT","RATE_DAILY","PERIOD"]
[362339798,1748206231981,-400.0,0.000191,6]
[362339799,1748206231991,-1353.96,0.00019166,2]
[362339800,1748206232000,-167.55,0.00019178,2]
[362339801,1748206232009,-900.0,0.000192,7]
[362339802,1748206232018,-1300.0,0.000193,7]
[362339803,1748206232027,-167.77,0.00019393,2]
[362339804,1748206232036,-300.0,0.00019399,2]
[362339805,1748206232045,-1200.0,0.00019399,2]
[362339806,1748206232055,-1800.0,0.000194,7]
[362339807,1748206232064,-2300.0,0.000195,7]
[362339808,1748206232074,-715.977109,0.00019599,2]
[362339809,1748206232087,-400.0,0.000196,7]
[362339810,1748206232098,-500.0,0.00019616,2]
[362339811,1748206232111,-400.0,0.000197,7]
[362339812,1748206232122,-207.4,0.00019714,2]
[362339813,1748206232131,-300.0,0.00019724,2]
[362339814,1748206232140,-236.0,0.00019724,2]
[362339815,1748206232149,-420.0,0.00019726,2]
[362339816,1748206232158,-420.0,0.00019726,2]
[362339817,1748206232168,-262.5229378,0.00019726,2]
[362339818,1748206232178,-420.0,0.00019726,2]
[362339819,1748206232187,-420.0,0.00019726,2]
[362339820,1748206232196,-420.0,0.00019726,2]
[362339821,1748206232206,-420.0,0.00019726,2]
[362339822,1748206232215,-420.0,0.00019726,2]
[362339823,1748206232224,-420.0,0.00019726,2]
[362339824,1748206232233,-420.0,0.00019726,2]
[362339825,1748206232243,-420.0,0.00019726,2]
[362339826,1748206232252,-430.3594666,0.00019726,2]
[362339827,1748206232262,-420.0,0.00019726,2]
[362339828,1748206232271,-392.44975149,0.00019726,2]
[362339829,1748206232280,-420.0,0.00019726,2]
[362339830,1748206232289,-420.0,0.00019726,2]
[362339831,1748206232298,-420.0,0.00019726,2]
[362339832,1748206232308,-420.0,0.00019726,2]
[362339833,1748206232317,-420.0,0.00019726,2]
[362339834,1748206232326,-429.57245145,0.00019726,2]
[362339836,1748206232335,-420.0,0.00019726,2]
[362339838,1748206232344,-420.0,0.00019726,2]
[362339840,1748206232353,-389.31786696,0.00019726,2]
[362339841,1748206232362,-420.0,0.00019726,2]
[362339843,1748206232372,-569.72,0.00019726,2]
[362339845,1748206232381,-420.0,0.00019726,2]
[362339847,1748206232390,-420.0,0.00019726,2]
[362339850,1748206232399,-420.0,0.00019726,2]
[362339852,1748206232408,-439.09207273,0.00019726,2]
[362339855,1748206232417,-420.0,0.00019726,2]
[362339857,1748206232426,-420.0,0.00019726,2]
[362339860,1748206232435,-428.98030329,0.00019726,2]
[362339863,1748206232444,-420.0,0.00019726,2]
[362339866,1748206232453,-420.0,0.00019726,2]
[362339869,1748206232462,-420.0,0.00019726,2]
[362339872,1748206232471,-181.3756464,0.00019726,2]
[362339874,1748206232481,-420.0,0.00019726,2]
[362339876,1748206232490,-420.0,0.00019726,2]
[362339877,1748206232499,-420.0,0.00019726,2]
[362339878,1748206232508,-420.0,0.00019726,2]
[362339879,1748206232517,-420.0,0.00019726,2]
[362339880,1748206232526,-420.0,0.00019726,2]
[362339881,1748206232535,-420.0,0.00019726,2]
[362339882,1748206232545,-420.0,0.00019726,2]
[362339883,1748206232554,-207.32,0.00019726,2]
[362339884,1748206232563,-420.0,0.00019726,2]
[362339885,1748206232572,-426.39853467,0.00019726,2]
[362339886,1748206232582,-420.0,0.00019726,2]
[362339887,1748206232591,-420.0,0.00019726,2]
[362339888,1748206232604,-339.86,0.00019726,2]
[362339889,1748206232614,-420.0,0.00019726,2]
[362339890,1748206232623,-394.25,0.00019726,2]
[362339891,1748206232632,-420.0,0.00019726,2]
[362339893,1748206232641,-3277.15,0.00019726,2]
[362339895,1748206232651,-429.37183923,0.00019726,2]
[362339897,1748206232660,-151.0,0.00019788,2]
[362339899,1748206232669,-23664.25901405,0.000198,2]
[362339901,1748206232681,-350.0,0.000198,2]
[362339904,1748206232696,-627.68208494,0.000198,2]
[362339907,1748206232715,-609.88347487,0.000198,2]
[362339909,1748206232729,-41110.76096427,0.000198,2]
[362339911,1748206232739,-400.0,0.000198,7]
[362339913,1748206232748,-199.33255376,0.00019895,2]
[362339915,1748206232758,-517.81,0.00019898,2]
[362339917,1748206232767,-420.0,0.00019898,2]
[362339919,1748206232775,-420.0,0.00019898,2]
[362339921,1748206232784,-543.65,0.00019898,2]
[362339923,1748206232793,-420.0,0.00019898,2]
[362339925,1748206232802,-284.16,0.00019898,2]
[362339927,1748206232811,-466.19025378,0.00019898,2]
[362339929,1748206232821,-403.47585905,0.00019898,2]
[362339931,1748206232829,-420.0,0.00019898,2]
[362339933,1748206232838,-308.54,0.00019898,2]
[362339935,1748206232847,-3277.15,0.00019898,2]
[362339936,1748206232856,-1024.92827404,0.00019898,2]
[362339938,1748206232865,-3126.6232,0.00019899,2]
[362339941,1748206232875,-420.0,0.00019899,2]
[362339943,1748206232884,-420.0,0.00019899,2]
[362339945,1748206232893,-316.86,0.00019899,2]
[362339946,1748206232903,-176.72,0.00019899,2]
[362339948,1748206232913,-3277.15,0.00019899,2]
[362339951,1748206232922,-300.71610326,0.00019899,2]
[362339952,1748206232932,-151.0,0.000199,2]
[362339954,1748206232941,-151.0,0.000199,2]
[362339956,1748206232950,-591.17965712,0.000199,2]
[362339958,1748206232960,-2206.24115501,0.000199,2]
[362339961,1748206232969,-400.0,0.000199,7]
[362339962,1748206232979,-205.12338594,0.000199,2]
[362339964,1748206232988,-370.115,0.0001992,2]
[362339965,1748206232997,-500.0,0.00019973,2]
[362339966,1748206233007,-500.0,0.00019973,2]
[362339967,1748206233016,-500.0,0.00019973,2]
[362339968,1748206233026,-500.0,0.00019973,2]
[362339969,1748206233035,-500.0,0.00019973,2]
[362339970,1748206233045,-612.64823099,0.00019973,2]
[362339971,1748206233054,-500.0,0.00019973,2]
[362339972,1748206233063,-500.0,0.00019973,2]
[362339973,1748206233073,-240.05,0.00019988,2]
[362339974,1748206233085,-420.0,0.00019988,2]
[362339975,1748206233095,-420.0,0.00019988,2]
[362339976,1748206233104,-420.0,0.00019988,2]
[362339977,1748206233114,-420.0,0.00019988,2]
[362339978,1748206233124,-507.3,0.00019988,2]
[362339979,1748206233134,-420.0,0.00019988,2]
[362339980,1748206233143,-420.0,0.00019988,2]
[362339981,1748206233153,-420.0,0.00019988,2]
[362339982,1748206233163,-420.0,0.00019988,2]
[362339983,1748206233173,-420.0,0.00019988,2]
[362339984,1748206233182,-436.37119863,0.00019988,2]
[362339985,1748206233192,-530.24,0.00019988,2]
[362339986,1748206233201,-420.0,0.00019988,2]
[362339987,1748206233211,-381.53,0.00019988,2]
[362339988,1748206233220,-420.0,0.00019988,2]
[362339989,1748206233230,-420.0,0.00019988,2]
[362339990,1748206233239,-420.0,0.00019988,2]
[362339991,1748206233249,-420.0,0.00019988,2]
[362339992,1748206233259,-420.0,0.00019988,2]
[362339993,1748206233268,-420.0,0.00019988,2]
[362339994,1748206233278,-420.0,0.00019988,2]
[362339995,1748206233287,-420.0,0.00019988,2]
[362339996,1748206233297,-248.21046137,0.00019988,2]
[362339997,1748206233307,-180.45,0.00019989,2]
[362339998,1748206233316,-420.0,0.00019989,2]
[362339999,1748206233326,-3277.15,0.00019989,2]
[362340000,1748206233335,-195.61256279,0.0001999,2]
[362340001,1748206233344,-151.0,0.00019992,2]
[362340002,1748206233354,-420.0,0.00019993,2]
[362340003,1748206233364,-420.0,0.00019993,2]
[362340004,1748206233373,-420.0,0.00019993,2]
[362340005,1748206233382,-420.0,0.00019993,2]
[362340006,1748206233392,-727.19,0.00019993,2]
[362340007,1748206233401,-420.0,0.00019993,2]
[362340008,1748206233413,-420.0,0.00019993,2]
[362340009,1748206233423,-420.0,0.00019993,2]
[362340010,1748206233432,-219.719909,0.00019993,2]
[362340011,1748206233441,-178.68852584,0.00019993,2]
[362340012,1748206233450,-181.39751779,0.00019993,2]
[362340013,1748206233459,-500.0,0.00019993,2]
[362340014,1748206233468,-200.22501664,0.00019993,2]
[362340015,1748206233478,-500.0,0.00019993,2]
[362340016,1748206233487,-411.81452674,0.00019994,2]
[362340017,1748206233497,-315.9,0.00019994,2]
[362340018,1748206233506,-168.11777377,0.00019994,2]
[362340019,1748206233516,-485.12242683,0.00019994,2]
[362340020,1748206233526,-420.0,0.00019994,2]
[362340021,1748206233535,-420.0,0.00019994,2]
[362340022,1748206233545,-420.0,0.00019994,2]
[362340023,1748206233555,-420.0,0.00019994,2]
[362340024,1748206233565,-340.8,0.00019994,2]
[362340025,1748206233574,-278.0,0.00019994,2]
[362340026,1748206233584,-551.62493084,0.00019994,2]
[362340027,1748206233593,-420.0,0.00019994,2]
[362340028,1748206233603,-420.0,0.00019994,2]
[362340029,1748206233612,-395.64,0.00019994,2]
[362340030,1748206233623,-435.76,0.00019994,2]
[362340031,1748206233632,-408.93,0.00019994,2]
[362340032,1748206233641,-246.21,0.00019994,2]
[362340033,1748206233650,-3277.15,0.00019994,2]
[362340034,1748206233659,-436.04567973,0.00019994,2]
[362340035,1748206233669,-420.0,0.00019994,2]
[362340036,1748206233678,-420.0,0.00019994,2]
[362340037,1748206233688,-420.0,0.00019994,2]
[362340038,1748206233697,-420.0,0.00019994,2]
[362340039,1748206233707,-420.0,0.00019994,2]
[362340040,1748206233716,-438.80942553,0.00019994,2]
[362340041,1748206233726,-420.0,0.00019994,2]
[362340042,1748206233736,-423.31263666,0.00019994,2]
[362340043,1748206233745,-423.96524345,0.00019994,2]
[362340044,1748206233754,-420.0,0.00019994,2]
[362340045,1748206233764,-420.0,0.00019994,2]
[362340046,1748206233773,-420.0,0.00019994,2]
[362340047,1748206233783,-420.0,0.00019994,2]
[362340048,1748206233792,-420.0,0.00019994,2]
[362340049,1748206233801,-420.0,0.00019994,2]
[362340050,1748206233810,-420.0,0.00019994,2]
[362340051,1748206233820,-420.0,0.00019994,2]
[362340052,1748206233829,-420.0,0.00019994,2]
[362340053,1748206233839,-420.0,0.00019994,2]
[362340054,1748206233849,-420.0,0.00019994,2]
[362340055,1748206233859,-420.0,0.00019994,2]
[362340056,1748206233868,-420.0,0.00019994,2]
[362340057,1748206233878,-420.0,0.00019994,2]
[362340058,1748206233888,-420.0,0.00019994,2]
[362340059,1748206233897,-325.45,0.00019994,2]
[362340060,1748206233907,-420.0,0.00019994,2]
[362340061,1748206233917,-420.0,0.00019994,2]
[362340062,1748206233927,-185.05,0.00019994,2]
[362340063,1748206233936,-290.7,0.00019994,2]
[362340064,1748206233946,-250.0,0.00019994,2]
[362340065,1748206233955,-372.88393607,0.00019994,2]
[362340066,1748206233965,-420.0,0.00019994,2]
[362340067,1748206233974,-420.0,0.00019994,2]
[362340068,1748206233984,-197.81,0.00019994,2]
[362340069,1748206233994,-353.35,0.00019994,2]
[362340070,1748206234003,-354.68,0.00019994,2]
[362340071,1748206234013,-420.0,0.00019994,2]
[362340072,1748206234023,-420.0,0.00019994,2]
[362340073,1748206234032,-420.0,0.00019994,2]
[362340074,1748206234042,-420.0,0.00019994,2]
[362340075,1748206234052,-420.0,0.00019994,2]
[362340076,1748206234061,-420.0,0.00019994,2]
[362340077,1748206234070,-420.0,0.00019994,2]
[362340078,1748206234083,-155.15,0.00019994,2]
[362340079,1748206234093,-420.0,0.00019994,2]
[362340080,1748206234103,-420.0,0.00019994,2]
[362340081,1748206234112,-420.0,0.00019994,2]
[362340082,1748206234123,-420.0,0.00019994,2]
[362340083,1748206234133,-420.0,0.00019994,2]
[362340084,1748206234142,-420.0,0.00019994,2]
[362340085,1748206234152,-420.0,0.00019994,2]
[362340086,1748206234162,-230.9,0.00019994,2]
[362340087,1748206234171,-420.0,0.00019994,2]
[362340088,1748206234180,-420.0,0.00019994,2]
[362340089,1748206234190,-420.0,0.00019994,2]
[362340090,1748206234200,-420.0,0.00019994,2]
[362340091,1748206234210,-420.0,0.00019994,2]
[362340092,1748206234220,-377.00922756,0.00019994,2]
[362340093,1748206234230,-420.0,0.00019994,2]
[362340094,1748206234240,-420.0,0.00019994,2]
[362340095,1748206234252,-420.0,0.00019994,2]
[362340096,1748206234266,-420.0,0.00019994,2]
[362340097,1748206234276,-500.0,0.00019994,2]
[362340098,1748206234286,-420.0,0.00019994,2]
[362340099,1748206234296,-420.0,0.00019994,2]
[362340100,1748206234305,-420.0,0.00019994,2]
[362340101,1748206234315,-420.0,0.00019994,2]
[362340102,1748206234325,-420.0,0.00019994,2]
[362340103,1748206234334,-212.93,0.00019994,2]
[362340104,1748206234344,-420.0,0.00019994,2]
[362340105,1748206234354,-420.0,0.00019994,2]
[362340106,1748206234363,-420.0,0.00019994,2]
[362340107,1748206234373,-420.0,0.00019994,2]
[362340108,1748206234382,-420.0,0.00019994,2]
[362340109,1748206234391,-420.0,0.00019994,2]
[362340110,1748206234401,-420.0,0.00019994,2]
[362340111,1748206234410,-420.0,0.00019994,2]
[362340112,1748206234419,-420.0,0.00019994,2]
[362340113,1748206234429,-500.26046329,0.00019994,2]
[362340114,1748206234439,-420.0,0.00019994,2]
[362340115,1748206234449,-431.40683145,0.00019994,2]
[362340116,1748206234458,-330.44,0.00019994,2]
[362340117,1748206234467,-420.0,0.00019994,2]
[362340118,1748206234477,-420.0,0.00019994,2]
[362340119,1748206234702,-420.0,0.00019994,2]
[362340120,1748206234711,-286.72,0.00019994,2]
[362340121,1748206234721,-331.05564191,0.00019994,2]
[362340122,1748206234730,-420.0,0.00019994,2]
[362340123,1748206234739,-539.04,0.00019994,2]
[362340124,1748206234749,-245.31246884,0.00019994,2]
[362340125,1748206234758,-420.0,0.00019994,2]
[362340126,1748206234767,-319.79893005,0.00019994,2]
[362340127,1748206234777,-420.0,0.00019994,2]
[362340128,1748206234786,-269.40058083,0.00019994,2]
[362340129,1748206234796,-420.0,0.00019994,2]
[362340130,1748206234806,-6437.82,0.00019994,2]
[362340131,1748206234815,-420.0,0.00019994,2]
[362340132,1748206234825,-420.0,0.00019994,2]
[362340133,1748206234834,-420.0,0.00019994,2]
[362340134,1748206234843,-420.0,0.00019994,2]
[362340135,1748206234853,-420.0,0.00019994,2]
[362340136,1748206234862,-420.0,0.00019994,2]
[362340137,1748206234871,-420.0,0.00019994,2]
[362340138,1748206234880,-420.0,0.00019994,2]
[362340139,1748206234890,-420.0,0.00019994,2]
[362340140,1748206234899,-420.0,0.00019994,2]
[362340141,1748206234908,-338.51317614,0.00019994,2]
[362340142,1748206234918,-420.0,0.00019994,2]
[362340143,1748206234927,-481.08685645,0.00019994,2]
[362340144,1748206234937,-420.0,0.00019994,2]
[362340145,1748206234946,-2306.3902981,0.00019995,2]
[362340146,1748206234955,-6704.15428471,0.00019995,2]
[362340147,1748206235180,-500.0,0.00019993,2]
[362340148,1748206235189,-500.0,0.00019993,2]
[362340149,1748206235198,-18809.50312349,0.00019995,2]
[362340150,1748206235209,-720.63172157,0.00019995,2]
[362340151,1748206235220,-950.00493654,0.00019995,2]
[362340152,1748206235231,-653.5860759,0.00019995,2]
[362340153,1748206235243,-3088.92554577,0.00019995,2]
[362340154,1748206235258,-31828.42747742,0.00019995,2]
[362340155,1748206235268,-1952.1380453,0.00019995,2]
[362340156,1748206235277,-3161.0124302,0.00019995,2]
[362340157,1748206235287,-3277.15,0.00019996,2]
[362340158,1748206235296,-420.0,0.00019997,2]
[362340159,1748206235305,-420.0,0.00019997,2]
[362340160,1748206235315,-420.0,0.00019997,2]
[362340161,1748206235324,-3277.15,0.00019997,2]
[362340162,1748206235333,-420.0,0.00019997,2]
[362340163,1748206235343,-420.0,0.00019997,2]
[362340164,1748206235351,-420.0,0.00019997,2]
[362340165,1748206235361,-420.0,0.00019997,2]
[362340166,1748206235370,-420.0,0.00019998,2]
[362340167,1748206235379,-420.0,0.00019998,2]
[362340168,1748206235389,-3277.15,0.00019998,2]
[362340169,1748206235398,-3277.15,0.00019998,2]
[362340170,1748206235408,-420.0,0.00019998,2]
[362340171,1748206235417,-166.07,0.00019998,2]
[362340172,1748206235426,-251.64,0.00019998,2]
[362340173,1748206235435,-264.67,0.00019998,2]
[362340174,1748206235444,-420.0,0.00019998,2]
[362340175,1748206235454,-420.0,0.00019998,2]
[362340176,1748206235463,-420.0,0.00019998,2]
[362340177,1748206235472,-521.05,0.00019998,2]
[362340178,1748206235481,-420.0,0.00019998,2]
[362340179,1748206235490,-529.65,0.00019998,2]
[362340180,1748206235499,-521.36,0.00019998,2]
[362340181,1748206235509,-341.6,0.00019998,2]
[362340182,1748206235518,-420.0,0.00019998,2]
[362340183,1748206235527,-420.0,0.00019998,2]
[362340184,1748206235536,-420.0,0.00019998,2]
[362340185,1748206235545,-420.0,0.00019998,2]
[362340186,1748206235554,-420.0,0.00019998,2]
[362340187,1748206235563,-420.0,0.00019998,2]
[362340188,1748206235572,-420.0,0.00019998,2]
[362340189,1748206235581,-151.98,0.00019998,2]
[362340190,1748206235590,-420.0,0.00019998,2]
[362340191,1748206235599,-420.0,0.00019998,2]
[362340192,1748206235608,-420.0,0.00019998,2]
[362340193,1748206235617,-420.0,0.00019998,2]
[362340194,1748206235626,-420.0,0.00019998,2]
[362340195,1748206235635,-420.0,0.00019998,2]
[362340196,1748206235644,-420.0,0.00019998,2]
[362340197,1748206235653,-420.0,0.00019998,2]
[362340198,1748206235662,-420.0,0.00019998,2]
[362340199,1748206235671,-6437.82,0.00019998,2]
[362340200,1748206235680,-727.19,0.00019998,2]
[362340201,1748206235690,-163.18,0.00019998,2]
[362340202,1748206235699,-420.0,0.00019998,2]
[362340203,1748206235708,-420.0,0.00019998,2]
[362340204,1748206235717,-420.0,0.00019998,2]
[362340205,1748206235727,-420.0,0.00019998,2]
[362340206,1748206235736,-420.0,0.00019998,2]
[362340207,1748206235745,-420.0,0.00019998,2]
[362340208,1748206235755,-164.744425,0.00019999,2]
[362340209,1748206235764,-1000.0,0.00019999,2]
[362340210,1748206235773,-32002.2588122,0.00019999,2]
[362340211,1748206235785,-7000.0,0.00019999,2]
[362340212,1748206235796,-762.17542217,0.00019999,2]
[362340213,1748206235807,-5895.15198333,0.00019999,2]
[362340219,1748206237769,-291.90733855,0.00019724,2]
[362340220,1748206237877,-208.09266145,0.00019724,2]
[362340221,1748206237886,-346.74661299,0.00019724,2]
[362340222,1748206237898,-116.28085102,0.00019724,2]
[362340223,1748206237907,-231.30157256,0.00019724,2]
[362340224,1748206237918,-299.9433789,0.00019724,2]
[362340225,1748206237928,-500.0,0.00019724,2]
[362340226,1748206237937,-160.14808543,0.00019724,2]
[362340227,1748206237984,-339.85191457,0.00019724,2]
[362340228,1748206237993,-500.0,0.00019724,2]
[362340229,1748206238003,-500.0,0.00019724,2]
[362340230,1748206238015,-500.44362368,0.00019724,2]
[362340231,1748206238025,-500.0,0.00019724,2]
[362340232,1748206238034,-500.0,0.00019724,2]
[362340234,1748206238044,-500.0,0.00019724,2]
[362340236,1748206238054,-1024.92827396,0.00019898,2]
[362340237,1748206238064,-500.0,0.00019993,2]
[362340238,1748206238074,-500.0,0.00019993,2]
[362340239,1748206238084,-500.0,0.00019993,2]
[362340240,1748206238097,-500.0,0.00019993,2]
[362340241,1748206238107,-500.0,0.00019993,2]
[362340242,1748206238116,-500.0,0.00019993,2]
[362340243,1748206238126,-420.0,0.00019994,2]
[362340244,1748206238136,-4099.9465316,0.00019999,2]
[362340306,1748206241990,-85.56830727,0.00019898,2]
[362340307,1748206242002,-679.90846456,0.00019898,2]
[362340308,1748206242026,-259.45150213,0.00019898,2]
[362340309,1748206242035,-3341.47849787,0.00019999,2]
[362340310,1748206242046,-1199.30233872,0.00019999,2]
[362340311,1748206242057,-316.37889428,0.00019999,2]
[362340313,1748206242856,-1761.37212073,0.00019999,2]
[362340314,1748206243180,-1053.12762004,0.00019999,2]
[362340315,1748206243189,-303.80866365,0.00019999,2]
[362340316,1748206243199,-185.04420058,0.00019999,2]
[362340317,1748206243209,-556.46,0.00019999,2]
[362340318,1748206243219,-484.99405745,0.00019999,2]
[362340319,1748206243228,-320.42,0.00019999,2]
[362340320,1748206243238,-2413.51787139,0.00019999,2]
[362340321,1748206243249,-863.63212861,0.00019999,2]
[362340322,1748206243259,-3277.15,0.00019999,2]
[362340323,1748206243268,-1313.39300429,0.00019999,2]
[362340324,1748206243280,-1963.75699571,0.00019999,2]
[362340325,1748206243289,-3277.15,0.00019999,2]
[362340326,1748206243299,-3277.15,0.00019999,2]
[362340327,1748206243308,-2467.31954662,0.00019999,2]
[362340328,1748206243319,-798.75001,0.00019999,2]
[362340329,1748206243331,-11.08044338,0.00019999,2]
[362340330,1748206243340,-382.81753322,0.00019999,2]
[362340332,1748206245749,-1024.92827396,0.00019899,2]
[362340333,1748206245759,-320.10870616,0.000199,2]
[362340334,1748206245768,-420.0,0.00019993,2]
[362340335,1748206245777,-2894.33246678,0.00019999,2]
[362340336,1748206245787,-3277.15,0.00019999,2]
[362340337,1748206245796,-3277.15,0.00019999,2]
[362340338,1748206245806,-3277.15,0.00019999,2]
[362340339,1748206245815,-3277.15,0.00019999,2]
[362340340,1748206245825,-3277.15,0.00019999,2]
[362340341,1748206245834,-3277.15,0.00019999,2]
[362340342,1748206245844,-3277.15,0.00019999,2]
[362340343,1748206245853,-1374.19380302,0.00019999,2]
[362340344,1748206245865,-688.32384066,0.00019999,2]
[362340345,1748206245876,-1144.90002,0.00019999,2]
[362340346,1748206245887,-69.76440002,0.00019999,2]
[362340347,1748206245896,-420.0,0.00019999,2]
[362340348,1748206245906,-264.35,0.00019999,2]
[362340349,1748206245916,-271.94,0.00019999,2]
[362340350,1748206245925,-184.32064428,0.00019999,2]
[362340351,1748206245970,-235.67935572,0.00019999,2]
[362340352,1748206245979,-420.0,0.00019999,2]
[362340353,1748206245989,-420.0,0.00019999,2]
[362340354,1748206245999,-511.42301237,0.00019999,2]
[362340355,1748206246008,-420.0,0.00019999,2]
[362340356,1748206246018,-420.0,0.00019999,2]
[362340357,1748206246027,-420.0,0.00019999,2]
[362340358,1748206246037,-420.0,0.00019999,2]
[362340359,1748206246046,-183.88,0.00019999,2]
[362340360,1748206246056,-420.0,0.00019999,2]
[362340361,1748206246066,-420.0,0.00019999,2]
[362340362,1748206246075,-274.83,0.00019999,2]
[362340363,1748206246084,-420.0,0.00019999,2]
[362340364,1748206246099,-420.0,0.00019999,2]
[362340365,1748206246108,-420.0,0.00019999,2]
[362340366,1748206246118,-420.0,0.00019999,2]
[362340367,1748206246127,-420.0,0.00019999,2]
[362340368,1748206246137,-420.0,0.00019999,2]
[362340369,1748206246146,-420.0,0.00019999,2]
[362340370,1748206246156,-420.0,0.00019999,2]
[362340371,1748206246166,-420.0,0.00019999,2]
[362340372,1748206246176,-420.0,0.00019999,2]
[362340373,1748206246186,-324.36,0.00019999,2]
[362340374,1748206246196,-420.0,0.00019999,2]
[362340375,1748206246205,-420.0,0.00019999,2]
[362340376,1748206246214,-420.0,0.00019999,2]
[362340377,1748206246224,-420.0,0.00019999,2]
[362340378,1748206246233,-420.0,0.00019999,2]
[362340379,1748206246242,-420.0,0.00019999,2]
[362340380,1748206246252,-420.0,0.00019999,2]
[362340381,1748206246262,-420.0,0.00019999,2]
[362340382,1748206246271,-420.0,0.00019999,2]
[362340383,1748206246282,-420.0,0.00019999,2]
[362340384,1748206246291,-309.85559557,0.00019999,2]
[362340385,1748206246300,-420.0,0.00019999,2]
[362340386,1748206246309,-420.0,0.00019999,2]
[362340387,1748206246319,-212.63,0.00019999,2]
[362340388,1748206246328,-420.0,0.00019999,2]
[362340389,1748206246338,-420.0,0.00019999,2]
[362340390,1748206246347,-420.0,0.00019999,2]
[362340391,1748206246357,-420.0,0.00019999,2]
[362340392,1748206246366,-420.0,0.00019999,2]
[362340393,1748206246375,-420.0,0.00019999,2]
[362340394,1748206246385,-476.5,0.00019999,2]
[362340395,1748206246395,-410.99,0.00019999,2]
[362340396,1748206246404,-420.0,0.00019999,2]
[362340397,1748206246413,-420.0,0.00019999,2]
[362340398,1748206246423,-420.0,0.00019999,2]
[362340399,1748206246432,-351.55,0.00019999,2]
[362340400,1748206246441,-420.0,0.00019999,2]
[362340401,1748206246451,-420.0,0.00019999,2]
[362340402,1748206246460,-420.0,0.00019999,2]
[362340403,1748206246470,-420.0,0.00019999,2]
[362340404,1748206246479,-164.68,0.00019999,2]
[362340405,1748206246489,-420.0,0.00019999,2]
[362340406,1748206246498,-420.0,0.00019999,2]
[362340407,1748206246507,-525.81,0.00019999,2]
[362340408,1748206246516,-420.0,0.00019999,2]
[362340409,1748206246525,-420.0,0.00019999,2]
[362340410,1748206246535,-420.0,0.00019999,2]
[362340411,1748206246544,-420.0,0.00019999,2]
[362340412,1748206246553,-420.0,0.00019999,2]
[362340413,1748206246562,-420.0,0.00019999,2]
[362340414,1748206246572,-420.0,0.00019999,2]
[362340415,1748206246581,-178.28,0.00019999,2]
[362340416,1748206246591,-420.0,0.00019999,2]
[362340417,1748206246600,-420.0,0.00019999,2]
[362340418,1748206246609,-265.64,0.00019999,2]
[362340419,1748206246619,-150.0,0.00019999,2]
[362340420,1748206246628,-150.31,0.00019999,2]
[362340421,1748206246637,-526.68538238,0.00019999,2]
[362340422,1748206246646,-6437.82,0.00019999,2]
[362340423,1748206246655,-6437.82,0.00019999,2]
[362340424,1748206246665,-6437.82,0.00019999,2]
[362340425,1748206246674,-6437.82,0.00019999,2]
[362340426,1748206246683,-6437.82,0.00019999,2]
[362340427,1748206246693,-6437.82,0.00019999,2]
[362340428,1748206246703,-6437.82,0.00019999,2]